fUSD/lending_fUSD_20250407
["ID","MTS","AMOUNT","RATE_DAILY","PERIOD"]
[357419450,1744053621313,-666.41,0.00045753,30]
[357419451,1744053621377,-500.0,0.00045753,30]
[357419452,1744053621433,-642.44,0.00045753,30]
[357419453,1744053621486,-500.0,0.00045753,30]
[357419454,1744053621536,-281.2156358,0.00045753,30]
[357419455,1744053621593,-669.48,0.00045753,30]
[357419456,1744053621644,-500.0,0.00045753,30]
[357419457,1744053621696,-500.0,0.00045753,30]
[357419458,1744053621755,-629.78,0.00045753,30]
[357419459,1744053621809,-789.54,0.00045753,30]
[357419460,1744053621861,-500.0,0.00045753,30]
[357419461,1744053621916,-500.0,0.00045753,30]
[357419462,1744053621967,-636.35,0.00045753,30]
[357419463,1744053622017,-516.15,0.00045753,30]
[357419464,1744053622066,-547.34,0.00045753,30]
[357419465,1744053622118,-500.0,0.00045753,30]
[357419466,1744053622169,-500.0,0.00045753,30]
[357419467,1744053622218,-500.0,0.00045753,30]
[357419468,1744053622267,-500.0,0.00045753,30]
[357419469,1744053622316,-500.0,0.00045753,30]
[357419470,1744053622374,-2154.07,0.00045753,30]
[357419471,1744053622424,-896.26,0.00045753,30]
[357419472,1744053622475,-500.0,0.00045753,30]
[357419473,1744053622526,-500.0,0.00045753,30]
[357419474,1744053622578,-527.73,0.00045753,30]
[357419475,1744053622639,-500.0,0.00045753,30]
[357419476,1744053622693,-500.0,0.00045753,30]
[357419477,1744053622743,-500.0,0.00045753,30]
[357419478,1744053622791,-682.75,0.00045753,30]
[357419479,1744053622841,-787.04,0.00045753,30]
[357419480,1744053622895,-667.11,0.00045753,30]
[357419481,1744053622945,-624.38,0.00045753,30]
[357419482,1744053622997,-500.0,0.00045753,30]
[357419483,1744053623046,-162.83022138,0.00045753,30]
[357419484,1744053623094,-546.09,0.00045753,30]
[357419485,1744053623144,-158.10955826,0.00045753,30]
[357419486,1744053623193,-826.91,0.00045753,30]
[357419487,1744053623241,-521.3,0.00045753,30]
[357419488,1744053623291,-500.0,0.00045753,30]
[357419489,1744053623343,-500.0,0.00045753,30]
[357419490,1744053623397,-623.66,0.00045753,30]
[357419491,1744053623448,-500.0,0.00045753,30]
[357419492,1744053623498,-894.23,0.00045753,30]
[357419493,1744053623549,-500.0,0.00045753,30]
[357419494,1744053623602,-546.91,0.00045753,30]
[357419495,1744053623656,-500.0,0.00045753,30]
[357419496,1744053623722,-728.3,0.00045753,30]
[357419497,1744053623779,-864.01,0.00045753,30]
[357419498,1744053623834,-1925.04,0.00045753,30]
[357419499,1744053623887,-2883.41,0.00045753,30]
[357419500,1744053623936,-767.67,0.00045753,30]
[357419501,1744053623986,-1087.6,0.00045753,30]
[357419502,1744053624035,-705.69,0.00045753,30]
[357419503,1744053624086,-2705.13,0.00045753,30]
[357419504,1744053624137,-500.67,0.00045753,30]
[357419505,1744053624186,-500.0,0.00045753,30]
[357419506,1744053624235,-500.0,0.00045753,30]
[357419507,1744053624284,-500.0,0.00045753,30]
[357419508,1744053624337,-648.00112381,0.00045753,30]
[357419509,1744053624386,-154.32810467,0.00045781,120]
[357419510,1744053624436,-450.38818045,0.00046,120]
[357419511,1744053624486,-500.0,0.00046027,30]
[357419512,1744053624537,-500.0,0.00046027,30]
[357419513,1744053624588,-500.0,0.00046027,30]
[357419514,1744053624637,-722.71,0.00046027,30]
[357419515,1744053624685,-500.0,0.00046027,30]
[357419516,1744053624735,-500.0,0.00046027,30]
[357419517,1744053624784,-500.0,0.00046027,30]
[357419518,1744053624836,-500.0,0.00046027,30]
[357419519,1744053624886,-854.61,0.00046027,30]
[357419520,1744053624938,-238.66,0.00046027,30]
[357419521,1744053624989,-635.5,0.00046027,30]
[357419522,1744053625307,-500.0,0.00046027,30]
[357419523,1744053625359,-500.0,0.00046027,30]
[357419524,1744053625411,-500.0,0.00046027,30]
[357419525,1744053625463,-500.0,0.00046027,30]
[357419526,1744053625513,-500.0,0.00046027,30]
[357419527,1744053625562,-601.13,0.00046027,30]
[357419528,1744053625611,-588.4,0.00046027,30]
[357419529,1744053625661,-500.0,0.00046027,30]
[357419530,1744053625710,-500.0,0.00046027,30]
[357419531,1744053625760,-500.0,0.00046027,30]
[357419532,1744053625811,-1000.0,0.00046027,120]
[357419533,1744053625861,-500.0,0.00046027,30]
[357419534,1744053625910,-500.0,0.00046027,30]
[357419535,1744053625960,-822.42,0.00046027,30]
[357419536,1744053626012,-500.0,0.00046027,30]
[357419537,1744053626062,-500.0,0.00046027,30]
[357419538,1744053626113,-500.0,0.00046027,30]
[357419539,1744053626163,-500.0,0.00046027,30]
[357419540,1744053626212,-500.0,0.00046027,30]
[357419541,1744053626263,-500.0,0.00046027,30]
[357419542,1744053626316,-500.0,0.00046027,30]
[357419543,1744053626370,-615.88563735,0.00046027,30]
[357419544,1744053626423,-500.0,0.00046027,30]
[357419545,1744053626477,-500.0,0.00046027,30]
[357419546,1744053626528,-794.6,0.00046027,30]
[357419547,1744053626578,-500.0,0.00046027,30]
[357419548,1744053626627,-500.0,0.00046027,30]
[357419549,1744053626676,-500.0,0.00046027,30]
[357419550,1744053626727,-530.61,0.00046027,30]
[357419551,1744053626777,-500.0,0.00046027,30]
[357419552,1744053626827,-500.0,0.00046027,30]
[357419553,1744053626878,-500.0,0.00046027,30]
[357419554,1744053626929,-716.94,0.00046027,30]
[357419555,1744053626979,-252.58030562,0.00046027,30]
[357419556,1744053627028,-500.0,0.00046027,30]
[357419557,1744053627078,-609.18,0.00046027,30]
[357419558,1744053627130,-500.0,0.00046027,30]
[357419559,1744053627180,-500.0,0.00046027,30]
[357419560,1744053627230,-720.32,0.00046027,30]
[357419561,1744053627279,-500.0,0.00046027,30]
[357419562,1744053627330,-500.0,0.00046027,30]
[357419563,1744053627382,-500.0,0.00046027,30]
[357419564,1744053627436,-735.43,0.00046027,30]
[357419565,1744053627488,-617.24,0.00046027,30]
[357419566,1744053627540,-500.0,0.00046027,30]
[357419567,1744053627593,-1231.25,0.00046027,30]
[357419568,1744053627650,-500.0,0.00046027,30]
[357419569,1744053627719,-500.0,0.00046027,30]
[357419570,1744053627768,-1044.03,0.00046027,30]
[357419571,1744053627818,-500.0,0.00046027,30]
[357419572,1744053627870,-500.0,0.00046027,30]
[357419573,1744053627919,-500.0,0.00046027,30]
[357419574,1744053627969,-1000.0,0.00046027,30]
[357419575,1744053628017,-500.0,0.00046027,30]
[357419576,1744053628066,-500.0,0.00046027,30]
[357419577,1744053628117,-982.57,0.00046027,30]
[357419578,1744053628167,-500.0,0.00046027,30]
[357419579,1744053628213,-500.0,0.00046027,30]
[357419580,1744053628259,-500.0,0.00046027,30]
[357419581,1744053628305,-500.0,0.00046027,30]
[357419582,1744053628354,-500.0,0.00046027,30]
[357419583,1744053628402,-600.19,0.00046027,30]
[357419584,1744053628451,-500.0,0.00046027,30]
[357419585,1744053628496,-500.0,0.00046027,30]
[357419586,1744053628542,-500.0,0.00046027,30]
[357419587,1744053628588,-500.0,0.00046027,30]
[357419588,1744053628634,-500.0,0.00046027,30]
[357419589,1744053628682,-587.41,0.00046027,30]
[357419590,1744053628732,-500.0,0.00046027,30]
[357419591,1744053628782,-500.0,0.00046027,30]
[357419592,1744053628831,-500.0,0.00046027,30]
[357419593,1744053628879,-500.0,0.00046027,30]
[357419594,1744053628927,-540.1,0.00046027,30]
[357419595,1744053628975,-500.0,0.00046027,30]
[357419596,1744053629022,-371.08389109,0.00046027,30]
[357419597,1744053629075,-500.0,0.00046027,30]
[357419598,1744053629124,-500.0,0.00046027,30]
[357419599,1744053629172,-500.0,0.00046027,30]
[357419600,1744053629219,-500.0,0.00046027,30]
[357419601,1744053629266,-500.0,0.00046027,30]
[357419602,1744053629312,-500.0,0.00046027,30]
[357419603,1744053629362,-632.26,0.00046027,30]
[357419604,1744053629418,-500.0,0.00046027,30]
[357419605,1744053629473,-708.42,0.00046027,30]
[357419606,1744053629531,-479.20294998,0.00046027,30]
[357419607,1744053629581,-500.0,0.00046027,30]
[357419608,1744053629630,-500.0,0.00046027,30]
[357419609,1744053629679,-500.0,0.00046027,30]
[357419610,1744053629728,-513.5,0.00046027,30]
[357419611,1744053629779,-562.45,0.00046027,30]
[357419612,1744053629829,-500.0,0.00046027,30]
[357419613,1744053629879,-676.15,0.00046027,30]
[357419614,1744053629926,-609.1,0.00046027,30]
[357419615,1744053629977,-500.0,0.00046027,30]
[357419616,1744053630029,-1539.75,0.00046027,30]
[357419617,1744053630077,-589.59,0.00046027,30]
[357419618,1744053630128,-744.86,0.00046027,30]
[357419619,1744053630177,-500.0,0.00046027,30]
[357419620,1744053630225,-664.96,0.00046027,30]
[357419621,1744053630272,-200.81769357,0.00046027,30]
[357419622,1744053630322,-597.41,0.00046027,30]
[357419623,1744053630372,-543.97,0.00046027,30]
[357419624,1744053630420,-500.0,0.00046027,30]
[357419625,1744053630469,-530.12,0.00046027,30]
[357419626,1744053630700,-500.0,0.00046027,30]
[357419627,1744053630751,-500.0,0.00046027,30]
[357419628,1744053630801,-500.0,0.00046027,30]
[357419629,1744053630851,-500.0,0.00046027,30]
[357419630,1744053630901,-269.28666262,0.00046027,30]
[357419631,1744053630950,-500.0,0.00046027,30]
[357419632,1744053630996,-500.0,0.00046027,30]
[357419633,1744053631044,-500.0,0.00046027,30]
[357419634,1744053631092,-925.55,0.00046027,30]
[357419635,1744053631140,-500.0,0.00046027,30]
[357419636,1744053631187,-500.0,0.00046027,30]
[357419637,1744053631235,-500.0,0.00046027,30]
[357419638,1744053631284,-500.0,0.00046027,30]
[357419639,1744053631334,-661.9,0.00046027,30]
[357419640,1744053631383,-500.0,0.00046027,30]
[357419641,1744053631438,-500.0,0.00046027,30]
[357419642,1744053631500,-636.98,0.00046027,30]
[357419643,1744053631552,-500.0,0.00046027,30]
[357419644,1744053631602,-500.0,0.00046027,30]
[357419645,1744053631653,-787.41,0.00046027,30]
[357419646,1744053631703,-455.9018709,0.00046027,30]
[357419647,1744053631757,-500.0,0.00046027,30]
[357419648,1744053631810,-500.0,0.00046027,30]
[357419649,1744053631859,-500.0,0.00046027,30]
[357419650,1744053631911,-500.0,0.00046027,30]
[357419651,1744053631965,-500.0,0.00046027,30]
[357419652,1744053632014,-822.19,0.00046027,30]
[357419653,1744053632065,-500.0,0.00046027,30]
[357419654,1744053632116,-500.0,0.00046027,30]
[357419655,1744053632171,-1379.67,0.00046027,30]
[357419656,1744053632222,-500.0,0.00046027,30]
[357419657,1744053632273,-566.16,0.00046027,30]
[357419658,1744053632328,-500.0,0.00046027,30]
[357419659,1744053632378,-500.0,0.00046027,30]
[357419660,1744053632427,-500.0,0.00046027,30]
[357419661,1744053632478,-500.0,0.00046027,30]
[357419662,1744053632528,-500.0,0.00046027,30]
[357419663,1744053632578,-500.0,0.00046027,30]
[357419664,1744053632630,-1323.29,0.00046027,30]
[357419665,1744053632682,-1923.81,0.00046027,30]
[357419666,1744053632733,-1718.27,0.00046027,30]
[357419667,1744053632786,-1047.48,0.00046027,30]
[357419668,1744053632837,-500.0,0.00046027,30]
[357419669,1744053632900,-500.0,0.00046027,30]
[357419670,1744053632959,-690.85,0.00046027,30]
[357419671,1744053633016,-500.0,0.00046027,30]
[357419672,1744053633074,-500.0,0.00046027,30]
[357419673,1744053633133,-500.0,0.00046027,30]
[357419674,1744053633191,-500.0,0.00046027,30]
[357419675,1744053633246,-701.1,0.00046027,30]
[357419676,1744053633304,-500.0,0.00046027,30]
[357419677,1744053633359,-553.48,0.00046027,30]
[357419678,1744053633424,-500.0,0.00046027,30]
[357419679,1744053633484,-500.0,0.00046027,30]
[357419680,1744053633540,-500.0,0.00046027,30]
[357419681,1744053633595,-958.02,0.00046027,30]
[357419682,1744053633648,-500.0,0.00046027,30]
[357419683,1744053633701,-500.0,0.00046027,30]
[357419684,1744053633759,-500.0,0.00046027,30]
[357419685,1744053633819,-785.81,0.00046027,30]
[357419686,1744053633880,-357.2095816,0.00046027,30]
[357419687,1744053633933,-500.0,0.00046027,30]
[357419688,1744053633985,-500.0,0.00046027,30]
[357419689,1744053634037,-400.78906536,0.00046027,30]
[357419690,1744053634089,-500.0,0.00046027,30]
[357419691,1744053634143,-500.0,0.00046027,30]
[357419692,1744053634195,-546.97,0.00046027,30]
[357419693,1744053634246,-984.22,0.00046027,30]
[357419694,1744053634299,-500.0,0.00046027,30]
[357419695,1744053634351,-500.0,0.00046027,30]
[357419696,1744053634409,-500.0,0.00046027,30]
[357419697,1744053634465,-500.0,0.00046027,30]
[357419698,1744053634517,-806.93,0.00046027,30]
[357419699,1744053634569,-510.24,0.00046027,30]
[357419700,1744053634623,-500.0,0.00046027,30]
[357419701,1744053634675,-500.0,0.00046027,30]
[357419702,1744053634728,-500.0,0.00046027,30]
[357419703,1744053634780,-547.8621406,0.00046027,30]
[357419704,1744053634834,-554.24,0.00046027,30]
[357419705,1744053634885,-688.4,0.00046027,30]
[357419706,1744053634936,-500.0,0.00046027,30]
[357419707,1744053634986,-500.0,0.00046027,30]
[357419708,1744053635036,-766.43,0.00046027,30]
[357419709,1744053635086,-500.0,0.00046027,30]
[357419710,1744053635135,-500.0,0.00046027,30]
[357419711,1744053635185,-500.0,0.00046027,30]
[357419712,1744053635236,-500.0,0.00046027,30]
[357419713,1744053635286,-548.79,0.00046027,30]
[357419714,1744053635336,-500.0,0.00046027,30]
[357419715,1744053635385,-680.81,0.00046027,30]
[357419716,1744053635434,-500.0,0.00046027,30]
[357419717,1744053635483,-500.0,0.00046027,30]
[357419718,1744053635532,-500.0,0.00046027,30]
[357419719,1744053635581,-621.21,0.00046027,30]
[357419720,1744053635629,-500.0,0.00046027,30]
[357419721,1744053635678,-500.0,0.00046027,30]
[357419722,1744053635732,-559.42,0.00046027,30]
[357419723,1744053635781,-500.0,0.00046027,30]
[357419724,1744053635832,-1240.17,0.00046027,30]
[357419725,1744053635882,-741.23,0.00046027,30]
[357419726,1744053635931,-578.45,0.00046027,30]
[357419727,1744053635980,-500.0,0.00046027,30]
[357419728,1744053636030,-500.0,0.00046027,30]
[357419729,1744053636077,-500.0,0.00046027,30]
[357419730,1744053636126,-1000.0,0.00046027,120]
[357419731,1744053636392,-500.0,0.00046027,30]
[357419732,1744053636444,-500.0,0.00046027,30]
[357419733,1744053636494,-500.0,0.00046027,30]
[357419734,1744053636545,-523.27,0.00046027,30]
[357419735,1744053636597,-500.0,0.00046027,30]
[357419736,1744053636648,-500.0,0.00046027,30]
[357419737,1744053636700,-1392.47,0.00046027,30]
[357419738,1744053636754,-1689.0,0.00046027,30]
[357419739,1744053636807,-805.22,0.00046027,30]
[357419740,1744053636857,-500.0,0.00046027,30]
[357419741,1744053636907,-1012.21,0.00046027,30]
[357419742,1744053636955,-708.56,0.00046027,30]
[357419743,1744053637003,-500.0,0.00046027,30]
[357419744,1744053637052,-500.0,0.00046027,30]
[357419745,1744053637104,-521.5,0.00046027,30]
[357419746,1744053637154,-1014.86,0.00046027,30]
[357419747,1744053637202,-841.52,0.00046027,30]
[357419748,1744053637250,-500.0,0.00046027,30]
[357419749,1744053637296,-500.0,0.00046027,30]
[357419750,1744053637343,-500.0,0.00046027,30]
[357419751,1744053637391,-1637.05,0.00046027,30]
[357419752,1744053637441,-500.0,0.00046027,30]
[357419753,1744053637491,-861.38,0.00046027,30]
[357419754,1744053637539,-684.24,0.00046027,30]
[357419755,1744053637587,-500.0,0.00046027,30]
[357419756,1744053637635,-500.0,0.00046027,30]
[357419757,1744053637682,-164.30986397,0.00046027,30]
[357419758,1744053641154,200.0,0.00042889,30]
[357419759,1744053641482,207.4,0.00042889,30]
[357419760,1744053641640,215.0738,0.00042889,30]
[357419761,1744053641716,223.0315306,0.00042889,30]
[357419762,1744053642017,231.28369723,0.00042889,30]
[357419763,1744053642336,239.84119403,0.00042889,30]
[357419764,1744053642454,248.71531821,0.00042889,30]
[357419765,1744053642554,257.91778498,0.00042889,30]
[357419766,1744053642795,267.46074303,0.00042889,30]
[357419767,1744053642836,277.35679052,0.00042889,30]
[357419768,1744053642898,287.61899177,0.00042889,30]
[357419769,1744053642990,298.26089446,0.00042889,30]
[357419770,1744053643045,309.29654756,0.00042889,30]
[357419771,1744053643086,320.74051982,0.00042889,30]
[357419772,1744053643208,332.60791905,0.00042889,30]
[357419773,1744053643469,344.91441206,0.00042889,30]
[357419774,1744053643900,357.6762453,0.00042889,30]
[357419775,1744053644053,370.91026638,0.00042889,30]
[357419776,1744053644509,384.63394623,0.00042889,30]
[357419777,1744053644632,384.63394623,0.00042889,30]
[357419778,1744053736783,200.0,0.00042889,30]
[357419779,1744053737416,207.4,0.00042889,30]
[357419780,1744053738033,215.0738,0.00042889,30]
[357419781,1744053738660,223.0315306,0.00042889,30]
[357419782,1744053739274,231.28369723,0.00042889,30]
[357419783,1744053739908,239.84119403,0.00042889,30]
[357419784,1744053740936,248.71531821,0.00042889,30]
[357419785,1744053741157,257.91778498,0.00042889,30]
[357419786,1744053741761,267.46074303,0.00042889,30]
[357419787,1744053742383,277.35679052,0.00042889,30]
[357419788,1744053743010,287.61899177,0.00042889,30]
[357419789,1744053743617,298.26089446,0.00042889,30]
[357419790,1744053744589,309.29654756,0.00042889,30]
[357419791,1744053745295,320.74051982,0.00042889,30]
[357419792,1744053745921,332.60791905,0.00042889,30]
[357419793,1744053746546,344.91441206,0.00042889,30]
[357419794,1744053747189,357.6762453,0.00042889,30]
[357419795,1744053747818,370.91026638,0.00042889,30]
[357419796,1744053748962,384.63394623,0.00042889,30]
[357419797,1744053749591,384.63394623,0.00042889,30]
[357419798,1744053791221,2150.0,0.00042891,30]
[357419799,1744053908686,1999500.0,0.0002,2]
[357419800,1744053908949,3830.85738575,0.00042891,90]
[357419801,1744053909319,3184.79051224,0.00042891,30]
[357419802,1744053910489,157.69315035,0.00042891,120]
[357419803,1744053911537,1999.999991,0.00042891,120]
[357419804,1744053911574,511.02837909,0.00042891,30]
[357419805,1744053912718,381.93005294,0.00042891,30]
[357419806,1744053913498,827.79326666,0.00042891,91]
[357419807,1744053914527,713.93334831,0.00042891,30]
[357419808,1744053915601,876.11914595,0.00042891,30]
[357419809,1744053916939,1000.0,0.00042891,30]
[357419810,1744053917397,2378.86908775,0.00042891,30]
[357419811,1744053917433,2776.99628491,0.00042891,30]
[357419812,1744053921082,1614.62193986,0.00042891,120]
[357419813,1744053921965,360.87665112,0.00042891,120]
[357419814,1744053925100,739.3164261,0.00042891,30]
[357419815,1744053925253,1247.2286427,0.00042891,120]
[357419816,1744053928396,2430.17286105,0.00042891,30]
[357419817,1744053929629,681.28406919,0.00042891,30]
[357419818,1744053930394,869.77857743,0.00042891,30]
[357419819,1744053930748,500.0,0.00042891,30]
[357419820,1744053939467,288.61551045,0.00042891,120]
[357419821,1744053941728,2500.0,0.00042891,30]
[357419822,1744053943496,1143.99042409,0.00042891,120]
[357419823,1744053946116,152.31799606,0.00042891,120]
[357419824,1744053947211,1804.43306693,0.00042891,120]
[357419825,1744053949020,361.15054417,0.00042891,120]
[357419826,1744053952277,858.16759627,0.00042891,30]
[357419827,1744053955607,2465.47931355,0.00042891,120]
[357419828,1744053956745,3000.0,0.00042891,30]
[357419829,1744053959118,-717.45054936,0.0001995,2]
[357419830,1744053960061,866.3755023,0.00042891,30]
[357419831,1744053963003,2102.23087768,0.00042891,90]
[357419832,1744053965216,160.83812646,0.00042891,120]
[357419833,1744053969956,933.20858268,0.00042891,30]
[357419834,1744053970407,825.15390843,0.00042891,120]
[357419835,1744053971645,679.00599013,0.00042891,60]
[357419836,1744053975238,455.15052207,0.00042891,30]
[357419837,1744053975380,208.87143885,0.00042891,30]
[357419838,1744053975779,964.08788536,0.00042891,30]
[357419839,1744053976373,252.86342578,0.00042891,120]
[357419841,1744053978531,208.70625171,0.00042891,120]
[357419842,1744053982476,478.33732779,0.00042891,120]
[357419843,1744053985883,1015.05689676,0.00042891,30]
[357419844,1744053989587,1521.49309246,0.00042891,120]
[357419845,1744053991638,352.37100217,0.00042891,30]
[357419846,1744053992978,322.1836005,0.00042891,60]
[357419847,1744054004466,705.07151797,0.00042891,120]
[357419848,1744054005992,354.73143161,0.00042891,30]
[357419849,1744054006619,206.77883778,0.00042891,30]
[357419850,1744054015188,406.43303704,0.00042891,120]
[357419851,1744054022286,288.88996569,0.00042891,120]
[357419852,1744054022728,189.38508362,0.00042891,120]
[357419853,1744054027573,251.66095975,0.00042891,30]
[357419854,1744054028127,-158.32389856,0.000198,2]
[357419855,1744054028148,-1759.743392,0.0001985,2]
[357419856,1744054028170,-606.99935932,0.000199,3]
[357419857,1744054035259,1082.85684842,0.00042891,120]
[357419858,1744054038852,200.0,0.00042891,30]
[357419859,1744054039480,207.4,0.00042891,30]
[357419860,1744054040113,215.0738,0.00042891,30]
[357419861,1744054040738,223.0315306,0.00042891,30]
[357419862,1744054041551,231.28369723,0.00042891,30]
[357419863,1744054042002,239.84119403,0.00042891,30]
[357419864,1744054042615,248.71531821,0.00042891,30]
[357419865,1744054043284,257.91778498,0.00042891,30]
[357419866,1744054043889,267.46074303,0.00042891,30]
[357419867,1744054044510,277.35679052,0.00042891,30]
[357419868,1744054045131,287.61899177,0.00042891,30]
[357419869,1744054045173,-2191.24877453,0.000199,3]
[357419870,1744054045760,298.26089446,0.00042891,30]
[357419871,1744054046403,309.29654756,0.00042891,30]
[357419872,1744054047059,320.74051982,0.00042891,30]
[357419873,1744054047732,332.60791905,0.00042891,30]
[357419874,1744054048470,344.91441206,0.00042891,30]
[357419875,1744054048993,357.6762453,0.00042891,30]
[357419876,1744054049645,370.91026638,0.00042891,30]
[357419877,1744054050257,384.63394623,0.00042891,30]
[357419878,1744054050890,384.63394623,0.00042891,30]
[357419879,1744054051111,-814.21994222,0.000199,3]
[357419880,1744054052408,1014.79773684,0.00042891,30]
[357419881,1744054063897,176.24168609,0.00042891,120]
[357419882,1744054068314,2144.28429282,0.00042891,120]
[357419883,1744054069571,2737.80062817,0.00042891,120]
[357419884,1744054069894,313.34796504,0.00042891,120]
[357419885,1744054070904,401.52482481,0.00042891,30]
[357419886,1744054071420,3085.65843815,0.00042891,30]
[357419887,1744054071457,1084.05640287,0.00042891,120]
[357419888,1744054071829,2678.19972892,0.00042891,120]
[357419889,1744054072808,1358.74529638,0.00042891,120]
[357419890,1744054072886,595.64126867,0.00042891,30]
[357419891,1744054074681,413.1419859,0.00042891,30]
[357419892,1744054076142,1086.70117758,0.00042891,30]
[357419893,1744054079713,406.99424373,0.00042891,30]
[357419894,1744054083820,370.26407598,0.00042891,30]
[357419895,1744054084878,10107.66961103,0.00015,2]
[357419896,1744054084907,2000000.0,0.00015,2]
[357419897,1744054084937,19680.6851345,0.00015,2]
[357419898,1744054084967,1407.79923067,0.00015,2]
[357419899,1744054084993,2000.0,0.00015,2]
[357419900,1744054085020,2000.0,0.00015,2]
[357419901,1744054085209,2000.0,0.00015,2]
[357419902,1744054085235,2000.0,0.00015,2]
[357419903,1744054085262,2000.0,0.00015,2]
[357419904,1744054085287,1000.0,0.00015,2]
[357419905,1744054085401,2083.58710636,0.00042891,30]
[357419906,1744054085561,-417.34367718,0.00015,2]
[357419907,1744054086964,953.55274122,0.00042891,120]
[357419908,1744054088371,381.79403915,0.00042891,120]
[357419909,1744054090337,182.67179534,0.00042891,60]
[357419910,1744054092333,158.54,0.0003022,120]
[357419911,1744054093676,886.80251625,0.00042891,30]
[357419912,1744054094201,705.42553194,0.00042891,120]
[357419913,1744054094446,2299.999999,0.00042891,120]
[357419914,1744054110258,-214.77118962,0.00014925,2]
[357419915,1744054111915,419.19963265,0.00042891,120]
[357419916,1744054111979,373.38606528,0.00042891,120]
[357419917,1744054112596,1000.80331199,0.00042891,120]
[357419918,1744054112981,698.56113847,0.00042891,120]
[357419919,1744054113368,183.04308049,0.00042891,60]
[357419920,1744054114279,938.3052927,0.00042891,38]
[357419921,1744054114535,-185.22881038,0.00014925,2]
[357419922,1744054125440,3125.6283857,0.00042891,30]
[357419925,1744054128792,150.000001,0.00028,60]
[357419927,1744054142013,-17.343678,0.00014925,2]
[357419928,1744054142037,-136.36724944,0.00014999,2]
[357419929,1744054145090,-51.09669004,0.00014999,2]
[357419930,1744054145111,-300.0,0.00014999,2]
[357419931,1744054145133,-46131.29114996,0.00015,2]
[357419932,1744054146008,-151.10422398,0.00015,2]
[357419933,1744054147111,-8066.423806,0.00015,2]
[357419937,1744054151072,-104501.271,0.00015,2]
[357419938,1744054152736,-640703.0,0.00015,2]
[357419939,1744054153397,-273.66285855,0.00015,2]
[357419940,1744054154070,-28099.3293,0.00015,2]
[357419941,1744054154101,-432110.7826,0.00015,2]
[357419942,1744054157105,-67657.74698595,0.00015,2]
[357419943,1744054157128,-420.0,0.00016416,2]
[357419944,1744054157149,-587.0,0.00017966,2]
[357419945,1744054161092,-823.0,0.00019663,2]
[357419946,1744054161115,-2772.066006,0.00019799,2]
[357419947,1744054164122,-5233.49029048,0.00019799,2]
[357419948,1744054164143,-163.68723397,0.00019799,2]
[357419949,1744054164163,-8005.55629641,0.00019816,2]
[357419950,1744054164183,-8005.55629641,0.00019833,2]
[357419951,1744054164205,-469.05301447,0.00019849,2]
[357419952,1744054175935,198.86575981,0.00014999,2]
[357419953,1744054175996,248.85522605,0.00014999,2]
[357419955,1744054188260,-200.0,0.000195,7]
[357419956,1744054188284,-37.1466,0.00019849,2]
[357419957,1744054192838,-500.0,0.000196,7]